Cogmind - Beta 13 X1 @@@ ROGUE MODE // 2023.09.25 @ 09:42:32 Player: DuckBoy Result: Destroyed by Proton Bomb Trap Performance ------------- Evolutions (2) 1000 Regions Visited (7) 1400 Robots Destroyed (84) 420 Value Destroyed (2849) 2849 Prototype IDs (25) 500 Alien Tech Used (0) 0 Bonus (2091) 2091 TOTAL SCORE: 8260 Bonus ------- High Alert Combat Kills 510 Follower Combat Kills 81 Entered Garrisons 200 Used RIF Installer 1000 Aligned with FarCom 300 Cogmind --------- Core Integrity 0/550 Matter 300/300 Energy 262/265 System Corruption 7% Temperature Cool (0) Movement Rolling (110) Ox2 Location -8/Materials Parts ------- > --- POWER (1) -------- Improved Ion Engine > --- PROPULSION (3) --- Wheel Wheel Wheel > --- UTILITY (4) ------ High-capacity Storage Unit Improved Terrain Scanner Advanced Targeting Computer Hacking Suite > --- WEAPON (3) ------- Advanced Beam Cannon Advanced Beam Cannon Guided Plasma Cannon > --- INVENTORY (20) --- Armored Treads Improved Heat Sink Large Storage Unit System Shield Authchip [R/Combat] Authchip [R/Combat] Authchip [R/Combat] Authchip [R/Combat] Authchip [R/Combat] Authchip [R/Combat] Authchip [R/Combat] Authchip [R/Combat] Authchip [R/Combat] Authchip [R/Combat] Authchip [R/Combat] Authchip [R/Combat] Relay Coupler [NC] (34) System Restoration Module Remote Datajack Katana Peak State ------------ > --- POWER ------------ Reinforced Deuterium Engine > --- PROPULSION ------- Armored Wheel Armored Wheel > --- UTILITY ---------- Coolant Injector High-capacity Storage Unit Advanced Targeting Computer Hacking Suite > --- WEAPON ----------- Heavy Plasma Cannon Magnetic Acceleration Cannon Remote Datajack > --- INVENTORY -------- Improved Ion Engine Improved Heat Sink Large Storage Unit Authchip [R/Combat] Authchip [R/Combat] Authchip [R/Combat] Authchip [R/Combat] Authchip [R/Combat] Authchip [R/Combat] Authchip [R/Combat] Authchip [R/Combat] Authchip [R/Combat] Authchip [R/Combat] Authchip [R/Combat] Authchip [R/Combat] Relay Coupler [NC] Relay Coupler [NC] System Restoration Module Shock Rifle Guided Plasma Cannon [Rating: 40] Favorites ----------- Power Reinforced Deuterium Engine Engine Reinforced Deuterium Engine Propulsion Armored Wheel Treads Light Treads Wheel Armored Wheel Utility Large Storage Unit Device Improved Heat Sink Storage Large Storage Unit Processor Advanced Targeting Computer Hackware Hacking Suite Protection Light Armor Plating Weapon Improved Assault Rifle Energy Gun Shock Rifle Energy Cannon Guided Plasma Cannon Ballistic Gun Improved Assault Rifle Ballistic Cannon Magnetic Acceleration Cannon Special Weapon Remote Datajack Slashing Weapon Katana Build | -11 -10 -10 -10 -9 -8 -8 -8 ------- Run | Jun Mat Min Exi Min Mat Gar Mat Slots Evolved 4 | . . . . . 4 . . Power . | . . . . . . . . Propulsion 1 | . . . . . 1 . . Utility 2 | . . . . . 2 . . Weapon 1 | . . . . . 1 . . Parts Attached 62 | 5 7 . . . 5 24 21 Power 4 | 1 . . . . . 2 1 Engine 4 | 1 . . . . . 2 1 Core . | . . . . . . . . Reactor . | . . . . . . . . Propulsion 15 | 2 2 . . . 1 2 8 Treads 2 | 2 . . . . . . . Leg . | . . . . . . . . Wheel 13 | . 2 . . . 1 2 8 Hover . | . . . . . . . . Flight . | . . . . . . . . Utility 17 | . 2 . . . 1 10 4 Device 8 | . 1 . . . . 4 3 Storage 2 | . 1 . . . . 1 . Processor 1 | . . . . . . 1 . Hackware 2 | . . . . . . 1 1 Protection 4 | . . . . . 1 3 . Artifact . | . . . . . . . . Weapon 26 | 2 3 . . . 3 10 8 Energy Gun 3 | . . . . . . 1 2 Energy Cannon 9 | . . . . . 1 4 4 Ballistic Gun 11 | 2 3 . . . 2 4 . Ballistic Cannon 1 | . . . . . . 1 . Launcher . | . . . . . . . . Special Weapon 1 | . . . . . . . 1 Impact Weapon . | . . . . . . . . Slashing Weapon 1 | . . . . . . . 1 Piercing Weapon . | . . . . . . . . Special Melee Weapon . | . . . . . . . . Unidentified Prototypes 2 | . 1 . . . . . 1 Corrupted Parts 1 | . . . . . . . 1 System Corruption 3 | . . . . . . . 3 Parts Lost 18 | . . . . . . 10 8 Power 2 | . . . . . . 1 1 Propulsion 5 | . . . . . . 2 3 Utility 3 | . . . . . . 3 . Weapon 8 | . . . . . . 4 4 Highest Loss Streak 5 | . . . . . . 5 5 To Critical Strikes . | . . . . . . . . Average Slot Usage (%) 92 | . 84 100 100 100 84 95 88 Engine 9 | . 14 14 14 14 9 7 8 Wheel 24 | . 27 28 28 28 22 25 19 Device 10 | . 1 14 14 14 9 12 8 Storage 9 | . 10 14 14 14 9 9 9 Processor 5 | . . . . . . 7 9 Hackware 2 | . . . . . . . 9 Protection 2 | . . . . . 7 5 . Energy Gun 1 | . . . . . . . 6 Energy Cannon 5 | . . . . . . 5 13 Ballistic Gun 17 | . 28 28 28 28 26 20 . Ballistic Cannon 1 | . . . . . . . 3 Naked Turns . | . . . . . . . . Heaviest Build 77 | 9 32 32 32 32 37 77 77 Greatest Support 40 | 40 40 24 24 24 36 36 32 Greatest Overweight (x) 6 | . 1 1 1 1 1 6 6 Average Overweight (x) 1 | . . 1 1 1 1 1 2 Largest Inventory Capacity 20 | 5 15 15 15 15 15 20 20 Average Capacity 16 | 5 12 15 15 15 15 16 20 Most Carried 20 | 4 5 5 7 8 7 20 20 Average Carried 11 | 1 4 5 5 7 6 12 19 Final Capacity 20 | 5 15 15 15 15 15 20 20 Final Carried 20 | 4 5 5 7 8 7 20 20 Class Distribution -------------------- 53% | Mutant 17% | Skirmisher 16% | Scavenger-Mutant 10% | Scavenger-Skirmisher Dominant Class ---------------- Mutant | -10/Materials Mutant | -10/Mines Mutant | -10/Exiles Mutant | -9/Mines Skirmisher | -8/Materials Mutant | -8/Garrison Scavenger-Mutant | -8/Materials Resources | -11 -10 -10 -10 -9 -8 -8 -8 ----------- Run | Jun Mat Min Exi Min Mat Gar Mat Matter Collected 1546 | 236 162 12 . 54 167 593 322 Remotely . | . . . . . . . . Salvage Created 3048 | . 278 . . 97 327 1564 782 Parts 181 | . 8 . . 16 18 86 53 Haulers Intercepted 4 | . 2 . . . . . 2 Recyclers Shooed 2 | . 1 . . . . . 1 Parts Field Recycled . | . . . . . . . . Retrieved Matter . | . . . . . . . . Parts Self-Destructed . | . . . . . . . . Prevented . | . . . . . . . . Kills | -11 -10 -10 -10 -9 -8 -8 -8 ------- Run | Jun Mat Min Exi Min Mat Gar Mat Combat Hostiles Destroyed 66 | . 1 . . 7 6 37 15 Guns 30 | . 1 . . 7 6 13 3 Cannons 35 | . . . . . . 24 11 AOE 1 | . . . . . . . 1 Classes Destroyed 14 | . 5 . . 1 1 6 1 Worker 4 | . 1 . . . . . 3 Builder 7 | . . . . . . . 7 Hauler 4 | . 2 . . . . . 2 Recycler 1 | . 1 . . . . . . Operator 1 | . 1 . . . . . . Watcher 1 | . . . . . 1 . . Swarmer 20 | . . . . 7 . 7 6 Saboteur 1 | . . . . . . 1 . Grunt 27 | . 1 . . . 6 11 9 Brawler 1 | . . . . . . 1 . Sentry 5 | . . . . . . 5 . Hunter 1 | . . . . . . 1 . Programmer 10 | . . . . . . 10 . Behemoth 1 | . . . . . . 1 . Best Kill Streak 8 | . 2 . . 4 4 5 8 Combat Bots Only 5 | . 1 . . 4 4 5 4 Max Kills in Single Turn 2 | . 1 . . 2 1 1 2 Gunslinging 1 | . . . . 1 . . . Exploded 1 | . . . . . . . 1 Melee . | . . . . . . . . Uniques/NPCs Destroyed . | . . . . . . . . Combat | -11 -10 -10 -10 -9 -8 -8 -8 -------- Run | Jun Mat Min Exi Min Mat Gar Mat Damage Taken 2471 | . 11 . . 146 212 1222 880 Core 574 | . . . . 16 14 241 303 Absorbed by Shields . | . . . . . . . . Core Remaining (%) 96 | 100 . . . 93 . . . Volleys Fired 204 | . 15 . . 9 14 102 64 Largest 3 | . 2 . . 2 3 3 3 Hottest 193 | . 46 . . 46 120 163 193 Shots Fired 398 | . 30 . . 18 40 184 126 Gun 238 | . 30 . . 18 39 110 41 Cannon 157 | . . . . . 1 74 82 Launcher . | . . . . . . . . Special 3 | . . . . . . . 3 Kinetic 223 | . 30 . . 18 39 118 18 Thermal 131 | . . . . . 1 66 64 Explosive . | . . . . . . . . Electromagnetic 41 | . . . . . . . 41 Robot Hit Streak 17 | . 9 . . 4 8 17 14 Robot Miss Streak 4 | . 2 . . 3 2 3 4 Penetration Max . | . . . . . . . . Secondary Targets 4 | . . . . 2 1 1 . Max Gunslinging Chain 1 | . . . . 1 1 1 . Shots Hit Robots 220 | . 22 . . 11 27 89 71 Core Hits 130 | . 9 . . 9 15 60 37 Critical Kills . | . . . . . . . . Critical Parts Destroyed 1 | . . . . . . 1 . Critical Strikes 3 | . . . . . . 3 . Destroy 1 | . . . . . . 1 . Blast 2 | . . . . . . 2 . Melee Attacks 1 | . . . . . . . 1 Impact . | . . . . . . . . Slashing 1 | . . . . . . . 1 Piercing . | . . . . . . . . Sneak Attacks . | . . . . . . . . Combat Hostiles . | . . . . . . . . Follow-up Attacks . | . . . . . . . . Damage Inflicted 6404 | . 329 . . 160 438 3131 2346 Guns 2435 | . 329 . . 160 438 1120 388 Cannons 3560 | . . . . . . 2011 1549 Explosions 374 | . . . . . . . 374 Melee 35 | . . . . . . . 35 Ramming . | . . . . . . . . Kinetic 2631 | . 329 . . 160 438 1371 333 Thermal 3098 | . . . . . . 1760 1338 Explosive 252 | . . . . . . . 252 Electromagnetic 388 | . . . . . . . 388 Impact . | . . . . . . . . Slashing 35 | . . . . . . . 35 Piercing . | . . . . . . . . Highest Corruption 7 | . . . . . . 4 7 Average Corruption 3 | . . . . . . 1 5 Corruption Purged . | . . . . . . . . Corruption Blocked . | . . . . . . . . Effects 41 | . . . . . . 17 24 Message Errors 10 | . . . . . . 5 5 Matter Fused 5 | . . . . . . 3 2 Heat Flow Errors 6 | . . . . . . 3 3 Energy Discharges 4 | . . . . . . . 4 Parts Rejected 3 | . . . . . . 1 2 Data Loss (minor) 6 | . . . . . . 2 4 Data Loss (major) 1 | . . . . . . 1 . Misfires 3 | . . . . . . 1 2 Alerts 1 | . . . . . . . 1 Weapon Failures 2 | . . . . . . 1 1 Overload Shots . | . . . . . . . . Overflow Damage 157 | . . . . . . 106 51 Projectiles 157 | . . . . . . 106 51 Explosions . | . . . . . . . . Melee . | . . . . . . . . Knockbacks 8 | . . . . . . 6 2 Impact . | . . . . . . . . Kinetic 5 | . . . . . . 3 2 Secondary 3 | . . . . . . 3 . Self-Inflicted Damage . | . . . . . . . . Shots . | . . . . . . . . Rammed . | . . . . . . . . Targets Rammed . | . . . . . . . . Kicked . | . . . . . . . . Crushed . | . . . . . . . . Highest Temperature 516 | . 1 . . . 68 240 516 Average Temperature 94 | . 1 . . . 13 71 124 Received Heat Transfer 888 | . 6 . . . 126 270 486 Effects 6 | . . . . . . 2 4 Energy Bleed 2 | . . . . . . . 2 Interference 4 | . . . . . . 2 2 Siege Activations . | . . . . . . . . Robots Corrupted . | . . . . . . . . Combat Hostiles . | . . . . . . . . Parts Fried . | . . . . . . . . Impact Corruptions . | . . . . . . . . Robots Melted . | . . . . . . . . Combat Hostiles . | . . . . . . . . Parts Melted 15 | . . . . . . 10 5 Heat Transferred 6061 | . . . . . . 3600 2461 Parts Sabotaged . | . . . . . . . . Parts Stolen . | . . . . . . . . Parts Stripped . | . . . . . . . . Power Chain Reactions 1 | . . . . . . . 1 Missiles Intercepted . | . . . . . . . . Alert | -11 -10 -10 -10 -9 -8 -8 -8 ------- Run | Jun Mat Min Exi Min Mat Gar Mat Peak Influence 1169 | . 68 26 . 160 255 1169 616 Initial 569 | . . 26 . . 62 165 569 Average 419 | . 32 26 . 113 144 705 267 Maximum Alert Level 4 | . . . . . 1 4 2 Low Security (%) 32 | 100 100 100 . 100 79 2 21 Level 1 25 | . . . . . 20 17 62 Level 2 14 | . . . . . . 21 16 Level 3 24 | . . . . . . 51 . Level 4 2 | . . . . . . 6 . Level 5 . | . . . . . . . . High Security . | . . . . . . . . Max Security . | . . . . . . . . Squads Dispatched 3 | . . . . . 1 . 2 Investigation . | . . . . . . . . Extermination . | . . . . . . . . Reinforcement 2 | . . . . . . . 2 Assault . | . . . . . . . . Garrison 1 | . . . . . 1 . . Intercept . | . . . . . . . . Searches Triggered . | . . . . . . . . Construction Impeded 1 | . . . . . . . 1 Haulers Reinforced . | . . . . . . . . Active Scanning Responses . | . . . . . . . . Cargo Convoy Interrupts . | . . . . . . . . Stealth | -11 -10 -10 -10 -9 -8 -8 -8 --------- Run | Jun Mat Min Exi Min Mat Gar Mat Distress Signals 2 | . . . . . 2 . . Communications Jammed . | . . . . . . . . Distress Signals . | . . . . . . . . Times Spotted 62 | . 3 . . 7 11 23 18 Peak Tracking Total 6 | . 1 . . 4 4 5 6 Tactical Retreats 1 | . . . . . . 1 . Traps | -11 -10 -10 -10 -9 -8 -8 -8 ------- Run | Jun Mat Min Exi Min Mat Gar Mat Traps Triggered 13 | . . . . . . 12 1 Indirectly . | . . . . . . . . Trap Hack Attempts . | . . . . . . . . Triggered . | . . . . . . . . Disarmed . | . . . . . . . . Reprogrammed . | . . . . . . . . Reused . | . . . . . . . . Traps Extracted . | . . . . . . . . Installed . | . . . . . . . . Triggered . | . . . . . . . . Machines | -11 -10 -10 -10 -9 -8 -8 -8 ---------- Run | Jun Mat Min Exi Min Mat Gar Mat Machines Disabled 11 | . . . . . 1 3 7 Max in Single Turn 2 | . . . . . 1 1 2 Garrison Relay 2 | . . . . . . 2 . Machines Repaired . | . . . . . . . . Machines Sabotaged . | . . . . . . . . Overloaded Fab Kills . | . . . . . . . . Hacking | -11 -10 -10 -10 -9 -8 -8 -8 --------- Run | Jun Mat Min Exi Min Mat Gar Mat Machines Accessed 19 | . 5 . 2 . 4 4 4 Terminals 16 | . 5 . . . 3 4 4 Fabricators . | . . . . . . . . Repair Stations . | . . . . . . . . Recycling Units . | . . . . . . . . Scanalyzers . | . . . . . . . . Garrison Access 1 | . . . . . 1 . . Total Hacks 48 | . 15 . 2 . 11 8 12 Successful 20 | . 4 . 2 . 6 1 7 Failed 27 | . 10 . . . 5 7 5 Catastrophic 8 | . 3 . . . 1 3 1 Database Lockouts 1 | . 1 . . . . . . Manual 38 | . 15 . 1 . 10 . 12 Terminals 45 | . 15 . . . 10 8 12 Fabricators . | . . . . . . . . Repair Stations . | . . . . . . . . Recycling Units . | . . . . . . . . Scanalyzers . | . . . . . . . . Garrison Access 1 | . . . . . 1 . . Terminal Hacks 11 | . 2 . 2 . 3 1 3 Record 1 | . . . 1 . . . . Part Schematic 2 | . . . . . 1 . 1 Robot Schematic 1 | . 1 . . . . . . Open Door 1 | . . . . . . 1 . Terminal Index 2 | . 1 . . . 1 . . Unreport Threat 2 | . . . . . . . 2 Zone Layout 1 | . . . . . 1 . . Derelict Proto ID Bank 1 | . . . 1 . . . . Fabricator Hacks . | . . . . . . . . Repair Station Hacks . | . . . . . . . . Recycling Unit Hacks . | . . . . . . . . Scanalyzer . | . . . . . . . . Garrison Access Hacks 1 | . . . . . 1 . . Unlock Access 1 | . . . . . 1 . . Unauthorized Hacks 8 | . 2 . . . 2 . 4 Terminals 8 | . 2 . . . 2 . 4 Assimilate 2 | . 1 . . . 1 . . Botnet 3 | . . . . . . . 3 Operators 3 | . 1 . . . 1 . 1 Fabricators . | . . . . . . . . Repair Stations . | . . . . . . . . Recycling Units . | . . . . . . . . Scanalyzers . | . . . . . . . . Garrison Access . | . . . . . . . . Data Cores Recovered 1 | . 1 . . . . . . Used 1 | . 1 . . . . . . Hacking Detections 13 | . 4 . . . 3 3 3 Full Trace Events 2 | . . . . . . 2 . Feedback Events 1 | . . . . . . 1 . Corruption 1 | . . . . . . 1 . Feedback Blocked . | . . . . . . . . Robot Schematics Acquired 1 | . 1 . . . . . . Robots Built . | . . . . . . . . Authchips . | . . . . . . . . Time . | . . . . . . . . Total Robot Build Rating . | . . . . . . . . Part Schematics Acquired 1 | . . . . . 1 . . Parts Built . | . . . . . . . . Authchips . | . . . . . . . . Time . | . . . . . . . . Total Part Build Rating . | . . . . . . . . Parts Repaired . | . . . . . . . . Time . | . . . . . . . . Parts Recycled . | . . . . . . . . Recycled Matter . | . . . . . . . . Retrieved Matter . | . . . . . . . . Retrieved Components . | . . . . . . . . Parts Scanalyzed . | . . . . . . . . Part Schematics Acquired . | . . . . . . . . Parts Damaged . | . . . . . . . . Bothacking | -11 -10 -10 -10 -9 -8 -8 -8 ------------ Run | Jun Mat Min Exi Min Mat Gar Mat Used RIF Installer 2 | . . . . . . 2 . Coupler Efficiency 1 | . . . . . . 1 . Robots Hacked 1 | . . . . . . . 1 Non-combat 1 | . . . . . . . 1 Combat . | . . . . . . . . Robot Hacks Applied 3 | . . . . . . . 3 purge_threat 2 | . . . . . . . 2 formatsys_low 1 | . . . . . . . 1 Relay Couplers Released 8 | . . . . . . 8 . Machine Destruction 8 | . . . . . . 8 . Attached 1 | . . . . . . . 1 Fabnet Peak Effective % . | . . . . . . . . Robots Rewired . | . . . . . . . . Allies Hacked . | . . . . . . . . Hacks Repelled . | . . . . . . . . Allies | -11 -10 -10 -10 -9 -8 -8 -8 -------- Run | Jun Mat Min Exi Min Mat Gar Mat Total Allies 4 | . 1 . . . 1 1 1 Largest Group 1 | . 1 1 1 . 1 1 1 Highest-Rated Group 39 | . 10 10 10 . 10 39 26 Highest-Rated Ally 39 | . 10 10 10 . 10 39 26 Total Orders 3 | . . . . . 2 1 . STAY 2 | . . . . . 1 1 . FOLLOW 1 | . . . . . 1 . . Ally Attacks 6 | . . . . . . 6 . Total Damage 80 | . . . . . . 80 . Kills 3 | . . . . . . 3 . Allies Corrupted . | . . . . . . . . Allies Melted . | . . . . . . . . Intel | -11 -10 -10 -10 -9 -8 -8 -8 ------- Run | Jun Mat Min Exi Min Mat Gar Mat Robot Analysis Total . | . . . . . . . . Derelict Logs Recovered 1 | . . . . 1 . . . Drone Launches . | . . . . . . . . Drone Recoveries . | . . . . . . . . Exploration | -11 -10 -10 -10 -9 -8 -8 -8 ------------- Run | Jun Mat Min Exi Min Mat Gar Mat Turns Passed 3707 | 67 365 34 299 247 225 1590 880 Spaces Moved 2482 | 38 286 33 283 207 158 1001 476 Core 4 | 4 . . . . . . . Treads 38 | 34 4 . . . . . . Legs . | . . . . . . . . Wheels 2440 | . 282 33 283 207 158 1001 476 Hover . | . . . . . . . . Flight . | . . . . . . . . Fastest Speed 50 | 50 90 105 105 105 105 90 98 Average Speed 109 | 148 102 105 105 105 105 106 123 Slowest Speed 180 | 160 160 105 105 105 105 180 180 Overloaded Moves . | . . . . . . . . Propulsion Burnouts . | . . . . . . . . Robots Hopped 1 | . . . . . . 1 . Cave-ins Triggered . | . . . . . . . . Exploration Rate (%) 38 | 4 48 11 70 52 19 75 25 Regions Visited 7 Branch Regions 3 Pre-discovered Areas 1 | . . . 1 . . . . Known Exits Taken 1 | . . . . . 1 . . Unknown Exits Taken 5 | 1 1 1 1 1 . . . Scrap Searched 2 | . . 1 . 1 . . . Spaces Dug 4 | . . . . . . 3 1 Terrain Destroyed 46 | . . . . . . 3 43 Melee . | . . . . . . . . Projectile 13 | . . . . . . 3 10 AOE 33 | . . . . . . . 33 Terrain Rammed . | . . . . . . . . Walls Destroyed . | . . . . . . . . Machines Disabled . | . . . . . . . . Actions | -11 -10 -10 -10 -9 -8 -8 -8 --------- Run | Jun Mat Min Exi Min Mat Gar Mat Total 3110 | 46 328 32 284 218 185 1367 650 Wait 263 | . 10 . . 2 7 163 81 Move 2474 | 37 285 32 282 206 158 998 476 Hop 1 | . . . . . . 1 . Pick Up 39 | 4 4 . 2 1 1 22 5 Fast Attach 30 | 5 5 . . . 1 9 10 Attach 14 | . 1 . . . 2 6 5 Detach 2 | . . . . . . 1 1 Swap 18 | . 1 . . . 2 9 6 Drop 16 | . 7 . . . . 8 1 Fire 204 | . 15 . . 9 14 102 64 Melee 1 | . . . . . . . 1 Ram . | . . . . . . . . Kick . | . . . . . . . . Crush . | . . . . . . . . Escape Stasis 48 | . . . . . . 48 . Rewire . | . . . . . . . . Trap . | . . . . . . . . Miscellaneous . | . . . . . . . . Route ------- -11/Junkyard -10/Materials (discovered 2 exits: [*Mat] / [*Min]) -10/Mines -10/Exiles -9/Mines -8/Materials (discovered 3 exits: Fac x2 / Gar) -8/Garrison (discovered 2 exits: *Mat x2) -8/Materials (discovered 1 exit: *Fac) History --------- Turn | Location | Event 7 | -11/Junkyard | Discovered new exit (range 15) 68 | -11/Junkyard | Entered Materials 225 | -10/Materials | Discovered new exit (range 12) 302 | -10/Materials | Build established: Mutant 389 | -10/Materials | Discovered new exit (range 16) 427 | -10/Materials | Central database locked down 433 | -10/Materials | Entered Mines 433 | -10/Mines | Accompanied by 1 ally 462 | -10/Mines | Deemed a non-threat by the Exiles lab entrance 463 | -10/Mines | Discovered new exit (range 5) 467 | -10/Mines | Entered Exiles 467 | -10/Exiles | Accompanied by 1 ally 493 | -10/Exiles | Met 8R-AWN 512 | -10/Exiles | Met EX-HEX 541 | -10/Exiles | Met EX-BIN 554 | -10/Exiles | Aligned with FarCom system 555 | -10/Exiles | Given EX-Vault access code 582 | -10/Exiles | Opened EX-Vault 590 | -10/Exiles | Found Gui. Plasma Cannon 613 | -10/Exiles | Warned to stay clear of 0b10 Research branches 688 | -10/Exiles | Met EX-DEC 708 | -10/Exiles | Learned location of Zion (-6) 753 | -10/Exiles | Discovered new exit (range 14) 766 | -10/Exiles | Left Exiles lab with Gui. Plasma Cannon 766 | -10/Exiles | Entered Mines 766 | -9/Mines | Accompanied by 1 ally 770 | -9/Mines | Met a Derelict bent on vengeance 789 | -9/Mines | Learned 8 Materials zone layouts 997 | -9/Mines | Discovered new exit (range 15) 1013 | -9/Mines | Entered Materials 1013 | -8/Materials | Evolved 4 slots: Propulsion x1, Utility x2, Weapon x1 1014 | -8/Materials | Identified exit to Factory 1187 | -8/Materials | Garrison activated, responded to threat 1238 | -8/Materials | Identified exit to Garrison 1238 | -8/Materials | Entered Garrison 1238 | -8/Garrison | Accompanied by 1 ally 1286 | -8/Garrison | Triggered checkpoint 1321 | -8/Garrison | Build established: Skirmisher 1344 | -8/Garrison | Triggered checkpoint 1344 | -8/Garrison | Triggered checkpoint 1348 | -8/Garrison | Triggered checkpoint 1452 | -8/Garrison | Installed Relay Interface Framework 1705 | -8/Garrison | Rescued a captive Derelict 1753 | -8/Garrison | Discovered new exit (range 11) 1766 | -8/Garrison | Triggered checkpoint 2039 | -8/Garrison | Destroyed B-75 Beast 2114 | -8/Garrison | Build established: Mutant 2150 | -8/Garrison | Triggered checkpoint 2176 | -8/Garrison | Triggered checkpoint 2322 | -8/Garrison | Expanded RIF knowledge: Coupler Efficiency 2554 | -8/Garrison | Discovered new exit (range 11) 2610 | -8/Garrison | Triggered checkpoint 2692 | -8/Garrison | Garrison Relay disabled 2753 | -8/Garrison | Lost 5 parts (1n1u3w) 2769 | -8/Garrison | Garrison Relay disabled 2828 | -8/Garrison | Entered Materials 2890 | -8/Materials | Core integrity fell below 50% 3332 | -8/Materials | Core integrity fell below 20% 3370 | -8/Materials | Lost 5 parts (1p2n2w) 3410 | -8/Materials | Build established: Scavenger-Mutant 3695 | -8/Materials | Discovered exit to Factory (range 12) 3708 | -8/Materials | Destroyed by Proton Bomb Trap Last Messages --------------- 03612_ R-06 Scavenger collects Welding Torch. 03615_ R-06 Scavenger collects Weight Redist. System. 03621_ U-05 Engineer builds a Wall. 03625_ Unknown Device melted. 03625_ U-05 Engineer destroyed. 03628_ Terrain Scan Processor melted. 03628_ U-05 Engineer destroyed. 03635_ System corrupted: FCS attempts to trigger Adv. Beam Cannon. 03635_ System corrupted: Adv. Beam Cannon misfires. 03637_ Dropped Wheel. 03642_ R-06 Scavenger collects Lgt. Ion Engine. 03646_ R-06 Scavenger collects Wheel. 03648_ Acquired 10 matter. 03649_ R-06 Scavenger collects Terrain Scan Processor. 03658_ R-06 Scavenger collects Lgt. Ion Engine. 03658_ K-01 Serf collects debris. 03676_ System corrupted: Heat flow error (+159). 03695_ EXIT=FOUND: FACTORY 03708_ Triggered Proton Bomb Trap. 03708_ A bubble of electromagnetic force engulfs the area. Map ----- +----------------------------------------------------+ | | | | | | | | | | | | | | | | | | | | | | | | | | | | | | | | | | | | | | | ???????????????????????????????????????????????? | | ?????????????????????????????######????????????? | | ????????????????????????????##!!!!##???????????? | | ????????????????????#########! !#???????????? | | ????????????????????# # #???????????? | | ????????????????????# <^ # #??????#?????? | | ????????????????????# @ #????????????? | | ????????????????????######+###### #?????#??????? | | ???????????????????#????????????# #????????????? | | ????????????????????????????????# ##???????????? | | ????????????????????????????????# #???????????#? | | ??????????????????????Y?????????# #?????######## | | ?????????????????????#??????????# #?????# # | | ??????????????????????????? ?"??# #?#???# """ =# | | ??????????????????????????? ????#+####### """ ?# | | ????????????????????????????????# # """ ?# | | ??????????????????????#??? ?????# ! #? ??# | | ????????????????#???????????????# #? ??# | | ???????????????????????????????## ###+#### | | ???????????????????????#??#????## # | | ????????????????????????????????# + | | ??????????????????????????????#?# #!% | | ????????????????????????#???????# [ # ###### | | ??????????????????????????#?????# # #????? | | ????????????????????????????????# +%#????? | | ????????????????????????????????# ###????? | | ????????????????????????????????#########??????? | | ?????????????????????????????????????????#?????? | | ??????????????????????????????????????#?????#??? | | ???????????????????????????????????????????????? | | ?????????????????????????????????#?????##??????? | +----------------------------------------------------+ Best States ------------- Heat Dissipation 59 Coolant Potential 65 Energy Generation 16 Energy Capacity 290 Matter Stores 300 Matter Capacity 300 Sight Range 16 Terrain Scan Range 16 Terrain Scan Density 10 Armor Coverage 150 Utility Shielding 66 Evasion (%) 42 Targeting Accuracy 8 Recoil Reduction 2 Offensive Hacking 10 Relay Coupler Types 1 Relay Coupler Value 4 Authchip Count 12 Item Schematics ----------------- Hacking Suite | -8/Materials | Hacked Robot Schematics ------------------ M-13 Machinist | -10/Materials | Hacked Fabricated ------------ Nothing Alien Tech Used ----------------- None Achievements -------------- None Challenges ------------ None Game ------ Seed MediumSurveybotMeganuke Manual? 0 Play Time 00:42:23 Cumulative 361.5 hours Start 2023.09.24 @ 15:15:44 End 2023.09.25 @ 09:42:32 Sessions 3 Manual Loads 0 Difficulty Rogue Special Mode None Game No. 232 Rogue 229 Adventurer 3 Explorer 0 Win Type - Total 7 Types 6/0/1/0/0/0/0/0/0 Lore% 69 Gallery% 75 Achievement% 66 Wizard Run 0 Options --------- ASCII 0 Keyboard 0 Movement Numpad Keybinds 0 Fullscreen 1 Font 18/SmallcapsGlow Map View 76x50 Tactical HUD 1 Map Filters NONE Filters NONE Steam 1 RUN: a011560c-71b6-4b81-8d5f-a6ad78456537